fUSD/lending_fUSD_20250211
["ID","MTS","AMOUNT","RATE_DAILY","PERIOD"]
[352726251,1739279441579,-224.97808785,0.00010958,2]
[352726253,1739279441589,-500.0,0.00010958,2]
[352726255,1739279441598,-661.63,0.00010958,2]
[352726257,1739279441608,-500.0,0.00010958,2]
[352726259,1739279441617,-500.0,0.00010958,2]
[352726261,1739279441627,-500.0,0.00010958,2]
[352726263,1739279441637,-500.0,0.00010958,2]
[352726265,1739279441647,-500.0,0.00010958,2]
[352726267,1739279441656,-1059.48,0.00010958,2]
[352726269,1739279441666,-866.77,0.00010958,2]
[352726271,1739279441675,-500.0,0.00010958,2]
[352726273,1739279441684,-500.0,0.00010958,2]
[352726275,1739279441694,-500.0,0.00010958,2]
[352726277,1739279441703,-500.0,0.00010958,2]
[352726279,1739279441713,-500.0,0.00010958,2]
[352726281,1739279441723,-500.0,0.00010958,2]
[352726283,1739279441733,-500.0,0.00010958,2]
[352726285,1739279441742,-500.0,0.00010958,2]
[352726287,1739279441752,-500.0,0.00010958,2]
[352726289,1739279441761,-500.0,0.00010958,2]
[352726291,1739279441771,-500.0,0.00010958,2]
[352726293,1739279441780,-756.25,0.00010958,2]
[352726295,1739279441790,-612.01,0.00010958,2]
[352726297,1739279441799,-500.0,0.00010958,2]
[352726299,1739279441808,-308.8048962,0.00010958,2]
[352726309,1739279441899,-191.1951038,0.00010958,2]
[352726311,1739279441908,-500.0,0.00010958,2]
[352726313,1739279441918,-161.03385486,0.00010958,2]
[352726377,1739279443424,-269.08,0.00010958,2]
[352726384,1739279446189,-69.88614514,0.00010958,2]
[352726385,1739279446200,-500.0,0.00010958,2]
[352726386,1739279446212,-500.0,0.00010958,2]
[352726387,1739279446223,-420.33030486,0.00010958,2]
[352726388,1739279446426,-212.4478259,0.00010958,2]
[352726389,1739279446439,-500.0,0.00010958,2]
[352726390,1739279446450,-500.0,0.00010958,2]
[352726391,1739279446462,-698.72,0.00010958,2]
[352726392,1739279446473,-500.0,0.00010958,2]
[352726393,1739279446486,-500.0,0.00010958,2]
[352726394,1739279446497,-500.0,0.00010958,2]
[352726395,1739279446508,-500.0,0.00010958,2]
[352726396,1739279446520,-859.13,0.00010958,2]
[352726398,1739279446532,-635.44,0.00010958,2]
[352726400,1739279446543,-500.0,0.00010958,2]
[352726402,1739279446555,-500.0,0.00010958,2]
[352726405,1739279446566,-500.0,0.00010958,2]
[352726406,1739279446578,-500.0,0.00010958,2]
[352726408,1739279446589,-500.0,0.00010958,2]
[352726410,1739279446601,-589.64,0.00010958,2]
[352726412,1739279446612,-500.0,0.00010958,2]
[352726415,1739279446624,-500.0,0.00010958,2]
[352726417,1739279446635,-500.0,0.00010958,2]
[352726419,1739279446646,-500.0,0.00010958,2]
[352726421,1739279446657,-500.0,0.00010958,2]
[352726423,1739279446668,-500.0,0.00010958,2]
[352726425,1739279446680,-517.30485329,0.00010958,2]
[352726428,1739279446691,-627.68,0.00010958,2]
[352726429,1739279446715,-500.0,0.00010958,2]
[352726431,1739279446755,-500.0,0.00010958,2]
[352726434,1739279446824,-500.0,0.00010958,2]
[352726436,1739279446924,-500.0,0.00010958,2]
[352726437,1739279447034,-500.0,0.00010958,2]
[352726439,1739279447156,-500.0,0.00010958,2]
[352726441,1739279447249,-500.0,0.00010958,2]
[352726443,1739279447337,-500.0,0.00010958,2]
[352726445,1739279447474,-500.0,0.00010958,2]
[352726447,1739279447587,-500.0,0.00010958,2]
[352726449,1739279447695,-500.0,0.00010958,2]
[352726451,1739279447782,-547.98,0.00010958,2]
[352726453,1739279447889,-500.0,0.00010958,2]
[352726455,1739279447911,-635.77,0.00010958,2]
[352726457,1739279447924,-500.0,0.00010958,2]
[352726459,1739279447935,-500.0,0.00010958,2]
[352726461,1739279447947,-500.0,0.00010958,2]
[352726464,1739279447959,-500.0,0.00010958,2]
[352726466,1739279447972,-500.0,0.00010958,2]
[352726468,1739279447984,-500.0,0.00010958,2]
[352726470,1739279447995,-503.55014086,0.00010958,2]
[352726472,1739279448007,-577.3891739,0.00010958,2]
[352726475,1739279448020,-500.0,0.00010958,2]
[352726477,1739279448031,-542.81,0.00010958,2]
[352726479,1739279448043,-500.0,0.00010958,2]
[352726481,1739279448055,-500.0,0.00010958,2]
[352726483,1739279448069,-500.0,0.00010958,2]
[352726485,1739279448081,-502.56,0.00010958,2]
[352726488,1739279448093,-500.0,0.00010958,2]
[352726490,1739279448105,-500.0,0.00010958,2]
[352726492,1739279448118,-639.94,0.00010958,2]
[352726494,1739279448130,-500.0,0.00010958,2]
[352726496,1739279448142,-500.0,0.00010958,2]
[352726499,1739279448154,-500.0,0.00010958,2]
[352726501,1739279448165,-1082.45,0.00010958,2]
[352726503,1739279448177,-500.0,0.00010958,2]
[352726505,1739279448189,-543.75,0.00010958,2]
[352726507,1739279448200,-500.0,0.00010958,2]
[352726510,1739279448213,-507.05209166,0.00010958,2]
[352726512,1739279448226,-500.0,0.00010958,2]
[352726514,1739279448238,-500.0,0.00010958,2]
[352726516,1739279448250,-500.0,0.00010958,2]
[352726518,1739279448263,-500.0,0.00010958,2]
[352726520,1739279448276,-1005.61,0.00010958,2]
[352726523,1739279448289,-500.0,0.00010958,2]
[352726525,1739279448302,-786.42,0.00010958,2]
[352726527,1739279448315,-500.0,0.00010958,2]
[352726530,1739279448327,-500.0,0.00010958,2]
[352726532,1739279448340,-500.0,0.00010958,2]
[352726534,1739279448352,-500.0,0.00010958,2]
[352726536,1739279448364,-500.0,0.00010958,2]
[352726538,1739279448376,-500.0,0.00010958,2]
[352726541,1739279448389,-500.0,0.00010958,2]
[352726543,1739279448402,-500.0,0.00010958,2]
[352726545,1739279448415,-500.0,0.00010958,2]
[352726547,1739279448427,-500.0,0.00010958,2]
[352726549,1739279448440,-619.92936965,0.00010958,2]
[352726551,1739279448453,-500.0,0.00010958,2]
[352726553,1739279448467,-500.0,0.00010958,2]
[352726555,1739279448480,-722.03,0.00010958,2]
[352726557,1739279448492,-921.14,0.00010958,2]
[352726559,1739279448504,-500.0,0.00010958,2]
[352726561,1739279448517,-500.0,0.00010958,2]
[352726563,1739279448529,-500.0,0.00010958,2]
[352726566,1739279448541,-500.0,0.00010958,2]
[352726568,1739279448554,-500.0,0.00010958,2]
[352726570,1739279448566,-500.0,0.00010958,2]
[352726572,1739279448579,-500.0,0.00010958,2]
[352726574,1739279448592,-500.0,0.00010958,2]
[352726576,1739279448603,-500.0,0.00010958,2]
[352726578,1739279448616,-500.0,0.00010958,2]
[352726580,1739279448629,-500.0,0.00010958,2]
[352726582,1739279448640,-500.0,0.00010958,2]
[352726585,1739279448653,-772.94,0.00010958,2]
[352726587,1739279448666,-500.0,0.00010958,2]
[352726589,1739279448678,-997.75,0.00010958,2]
[352726591,1739279448692,-502.40298537,0.00010958,2]
[352726593,1739279448704,-500.0,0.00010958,2]
[352726596,1739279448717,-500.0,0.00010958,2]
[352726598,1739279448730,-500.0,0.00010958,2]
[352726600,1739279448745,-997.53,0.00010958,2]
[352726602,1739279448757,-687.31,0.00010958,2]
[352726604,1739279448768,-500.0,0.00010958,2]
[352726606,1739279448779,-500.0,0.00010958,2]
[352726608,1739279448789,-827.93,0.00010958,2]
[352726610,1739279448800,-540.58,0.00010958,2]
[352726612,1739279448810,-500.0,0.00010958,2]
[352726614,1739279448821,-500.0,0.00010958,2]
[352726616,1739279448832,-625.97,0.00010958,2]
[352726618,1739279448842,-828.23,0.00010958,2]
[352726620,1739279448853,-1905.85,0.00010958,2]
[352726622,1739279448864,-1601.9,0.00010958,2]
[352726624,1739279448875,-500.0,0.00010958,2]
[352726626,1739279448885,-790.11,0.00010958,2]
[352726664,1739279449306,-500.0,0.00010958,2]
[352726667,1739279449334,-1076.83,0.00010958,2]
[352726670,1739279449349,-500.0,0.00010958,2]
[352726672,1739279449361,-500.0,0.00010958,2]
[352726674,1739279449373,-500.0,0.00010958,2]
[352726676,1739279449383,-1608.08,0.00010958,2]
[352726678,1739279449395,-977.82,0.00010958,2]
[352726680,1739279449409,-1761.87,0.00010958,2]
[352726682,1739279449419,-568.66,0.00010958,2]
[352726684,1739279449430,-1222.26,0.00010958,2]
[352726686,1739279449442,-1672.56,0.00010958,2]
[352726688,1739279449453,-500.0,0.00010958,2]
[352726690,1739279449464,-500.0,0.00010958,2]
[352726692,1739279449477,-976.28,0.00010958,2]
[352726694,1739279449487,-500.0,0.00010958,2]
[352726696,1739279449498,-942.66,0.00010958,2]
[352726698,1739279449509,-1379.24,0.00010958,2]
[352726700,1739279449526,-500.0,0.00010958,2]
[352726702,1739279449537,-500.0,0.00010958,2]
[352726704,1739279449548,-500.0,0.00010958,2]
[352726706,1739279449558,-500.0,0.00010958,2]
[352726708,1739279449568,-1685.76,0.00010958,2]
[352726710,1739279449579,-407.96,0.00010958,2]
[352726712,1739279449589,-570.64,0.00010958,2]
[352726714,1739279449598,-795.75,0.00010958,2]
[352726716,1739279449607,-2067.68,0.00010958,2]
[352726718,1739279449622,-2412.57,0.00010958,2]
[352726720,1739279449632,-500.0,0.00010958,2]
[352726722,1739279449642,-500.0,0.00010958,2]
[352726724,1739279449651,-554.05,0.00010958,2]
[352726726,1739279449661,-1822.86,0.00010958,2]
[352726728,1739279449671,-2612.24,0.00010958,2]
[352726730,1739279449682,-508.60961643,0.00010958,2]
[352726732,1739279449691,-3281.31230444,0.00010958,2]
[352726736,1739279449715,-1.70769556,0.00010958,2]
[352726738,1739279449725,-500.0,0.00010958,2]
[352726740,1739279449734,-500.0,0.00010958,2]
[352726742,1739279449743,-500.0,0.00010958,2]
[352726744,1739279449752,-767.36188844,0.00010958,2]
[352726943,1739279475498,-300.0,8.698e-05,2]
[352726944,1739279475521,-4166.2769,8.699e-05,2]
[352726945,1739279475542,-945.9471,8.699e-05,2]
[352726946,1739279475562,-222.1248,8.699e-05,2]
[352726947,1739279475583,-312.4327,8.699e-05,2]
[352726948,1739279480695,20000.0,0.0002,120]
[352726949,1739279824755,840.67,0.00019178,120]
[352726950,1739280085674,-300.0,8.835e-05,2]
[352726951,1739280085696,-1782.7066,8.836e-05,2]
[352726952,1739280085719,-4800.4403,8.836e-05,2]
[352726953,1739280085739,-5000.0,8.973e-05,2]
[352726954,1739280085759,-780.5122,8.973e-05,2]
[352726956,1739280187733,997.92,0.0002,120]
[352726957,1739280336158,36.3409,8e-05,2]
[352726958,1739280336179,53.2185,8e-05,2]
[352726959,1739280336201,1910.4406,8e-05,2]
[352726960,1739280345043,459.86,8.219e-05,2]
[352726997,1739280632728,-250.0,9.389e-05,2]
[352726998,1739280632738,-651.35,9.407e-05,2]
[352726999,1739280632747,-1758.58197334,9.414e-05,2]
[352727000,1739280632759,-241.41802666,9.414e-05,2]
[352727001,1739280632768,-343.76000001,9.42e-05,2]
[352727002,1739280632780,-591.826501,9.42e-05,2]
[352727003,1739280632822,-416.02307521,9.42e-05,2]
[352727004,1739280632834,-2584.6,9.42e-05,2]
[352727005,1739280632845,-10315.82042378,9.42e-05,2]
[352727006,1739280632854,-1000.0,9.427e-05,2]
[352727007,1739280632866,-177.81,9.428e-05,2]
[352727008,1739280632875,-169.98,9.529e-05,2]
[352727009,1739280632885,-2628.72486853,9.57e-05,2]
[352727010,1739280632896,-590.62,9.656e-05,2]
[352727011,1739280632905,-150.0,9.763e-05,2]
[352727012,1739280632915,-600.0,9.764e-05,2]
[352727013,1739280632924,-500.0,9.764e-05,2]
[352727014,1739280632934,-150.99,9.764e-05,2]
[352727015,1739280632943,-9999.99,9.764e-05,2]
[352727016,1739280632952,-697.48,9.764e-05,2]
[352727017,1739280632962,-299.99,9.764e-05,2]
[352727018,1739280632971,-9999.99,9.764e-05,2]
[352727019,1739280632981,-18967.63963364,0.0001,2]
[352727020,1739280633007,-2837.55219273,0.0001,2]
[352727021,1739280633245,-992.9371994,0.0001,2]
[352727114,1739280638327,-25115.77850363,0.0001,2]
[352727115,1739280638338,-15874.33,0.0001,2]
[352727116,1739280638348,-3095.877672,0.0001,2]
[352727117,1739280638358,-470.61,0.00010137,2]
[352727118,1739280638367,-500.0,0.00010247,2]
[352727119,1739280638377,-214.19,0.00010249,2]
[352727120,1739280638387,-214.19,0.00010252,2]
[352727121,1739280638397,-214.19,0.00010254,2]
[352727122,1739280638406,-214.19,0.00010257,2]
[352727123,1739280638416,-214.19,0.0001026,2]
[352727124,1739280638426,-214.19,0.00010262,2]
[352727125,1739280638436,-214.19,0.00010265,2]
[352727126,1739280638446,-214.19,0.00010268,2]
[352727127,1739280638456,-214.19,0.00010271,2]
[352727128,1739280638466,-214.19,0.00010273,2]
[352727129,1739280638476,-214.19,0.00010276,2]
[352727130,1739280638490,-214.19,0.00010279,2]
[352727131,1739280638501,-214.19,0.00010281,2]
[352727132,1739280638510,-44333.54349467,0.00010284,2]
[352727133,1739280638520,-214.19,0.00010284,2]
[352727134,1739280638529,-214.19,0.00010287,2]
[352727135,1739280638539,-214.19,0.00010289,2]
[352727136,1739280638549,-214.19,0.00010292,2]
[352727137,1739280638559,-214.19,0.00010295,2]
[352727138,1739280638575,-214.19,0.00010297,2]
[352727139,1739280638585,-214.19,0.000103,2]
[352727140,1739280638595,-459.86,0.00010444,2]
[352727141,1739280638604,-500.0,0.00010493,2]
[352727142,1739280638613,-1000.0,0.00010606,2]
[352727143,1739280638623,-255.0,0.00010739,2]
[352727144,1739280638632,-503.47,0.00010821,2]
[352727145,1739280638642,-60699.73516719,0.00010824,2]
[352727147,1739280638651,-552.4024971,0.00010832,2]
[352727149,1739280638660,-1756.344901,0.00010832,2]
[352727150,1739280638669,-1886.571163,0.00010833,2]
[352727152,1739280638678,-552.4024971,0.00010835,2]
[352727153,1739280638688,-1756.344901,0.00010838,2]
[352727154,1739280638697,-552.4024971,0.00010838,2]
[352727155,1739280638706,-4286.93843266,0.00010839,2]
[352727156,1739280638716,-552.4024971,0.0001084,2]
[352727157,1739280638725,-2599.36469,0.0001085,2]
[352727158,1739280638737,-1756.344901,0.00010851,2]
[352727159,1739280638747,-200.0,0.00010852,2]
[352727160,1739280638757,-4286.93843266,0.00010856,2]
[352727162,1739280638766,-333.23844308,0.00010857,2]
[352727163,1739280638775,-1886.571163,0.00010859,2]
[352727165,1739280638784,-4286.93843266,0.00010861,2]
[352727168,1739280638793,-60699.73516719,0.00010863,2]
[352727171,1739280638803,-60699.73516719,0.00010865,2]
[352727173,1739280638814,-1756.344901,0.00010872,2]
[352727176,1739280638827,-4286.93843266,0.00010873,2]
[352727178,1739280638837,-60699.73516719,0.00010883,2]
[352727180,1739280638847,-1886.571163,0.00010885,2]
[352727182,1739280638857,-1886.571163,0.00010893,2]
[352727184,1739280638867,-1207.98846723,0.00010895,2]
[352727186,1739280638877,-17474.59355435,0.00010901,2]
[352727188,1739280638886,-207.74201727,0.00010956,2]
[352727190,1739280638898,-500.0,0.00010956,2]
[352727192,1739280638907,-500.0,0.00010956,2]
[352727194,1739280638917,-500.0,0.00010956,2]
[352727195,1739280638927,-500.0,0.00010956,2]
[352727197,1739280638936,-500.0,0.00010956,2]
[352727199,1739280638946,-500.0,0.00010956,2]
[352727201,1739280638955,-500.0,0.00010956,2]
[352727203,1739280638965,-500.0,0.00010956,2]
[352727205,1739280638975,-298.61745319,0.00010956,2]
[352727208,1739280638988,-500.0,0.00010956,2]
[352727209,1739280638997,-500.0,0.00010956,2]
[352727212,1739280639007,-500.0,0.00010956,2]
[352727214,1739280639016,-500.0,0.00010956,2]
[352727215,1739280639025,-500.0,0.00010956,2]
[352727218,1739280639035,-500.0,0.00010956,2]
[352727220,1739280639045,-500.0,0.00010956,2]
[352727222,1739280639055,-500.0,0.00010956,2]
[352727224,1739280639064,-312447.65193051,0.00010957,2]
[352727226,1739280639074,-155.534578,0.00010958,2]
[352727228,1739280639083,-152.536992,0.00010958,2]
[352727230,1739280639092,-156.213401,0.00010958,2]
[352727232,1739280639102,-170.412051,0.00010958,2]
[352727233,1739280639111,-503.9399804,0.00010958,2]
[352727236,1739280639121,-500.0,0.00010958,2]
[352727238,1739280639132,-500.0,0.00010958,2]
[352727240,1739280639141,-500.0,0.00010958,2]
[352727242,1739280639151,-500.0,0.00010958,2]
[352727244,1739280639160,-500.0,0.00010958,2]
[352727246,1739280639170,-500.0,0.00010958,2]
[352727248,1739280639179,-500.0,0.00010958,2]
[352727250,1739280639188,-500.0,0.00010958,2]
[352727252,1739280639197,-500.0,0.00010958,2]
[352727254,1739280639206,-500.0,0.00010958,2]
[352727256,1739280639216,-500.0,0.00010958,2]
[352727257,1739280639225,-500.0,0.00010958,2]
[352727259,1739280639237,-500.0,0.00010958,2]
[352727261,1739280639247,-500.0,0.00010958,2]
[352727263,1739280639258,-345.60949126,0.00010958,2]
[352727265,1739280639267,-500.0,0.00010958,2]
[352727267,1739280639277,-500.0,0.00010958,2]
[352727269,1739280639287,-500.0,0.00010958,2]
[352727272,1739280639296,-500.0,0.00010958,2]
[352727273,1739280639306,-500.0,0.00010958,2]
[352727275,1739280639315,-500.0,0.00010958,2]
[352727278,1739280639325,-500.0,0.00010958,2]
[352727279,1739280639334,-500.0,0.00010958,2]
[352727282,1739280639344,-500.0,0.00010958,2]
[352727283,1739280639354,-500.0,0.00010958,2]
[352727285,1739280639364,-500.0,0.00010958,2]
[352727287,1739280639374,-500.0,0.00010958,2]
[352727289,1739280639383,-500.0,0.00010958,2]
[352727292,1739280639392,-500.0,0.00010958,2]
[352727293,1739280639401,-500.0,0.00010958,2]
[352727295,1739280639411,-500.0,0.00010958,2]
[352727297,1739280639421,-502.03898472,0.00010958,2]
[352727299,1739280639430,-501.66708305,0.00010958,2]
[352727301,1739280639440,-500.0,0.00010958,2]
[352727303,1739280639449,-500.0,0.00010958,2]
[352727305,1739280639463,-500.0,0.00010958,2]
[352727307,1739280639472,-487.57288583,0.00010958,2]
[352727309,1739280639482,-500.0,0.00010958,2]
[352727311,1739280639492,-500.0,0.00010958,2]
[352727313,1739280639502,-500.0,0.00010958,2]
[352727315,1739280639511,-500.0,0.00010958,2]
[352727317,1739280639520,-607.70010602,0.00010958,2]
[352727319,1739280639529,-172.4713094,0.00010958,2]
[352727321,1739280639539,-500.0,0.00010958,2]
[352727323,1739280639548,-500.0,0.00010958,2]
[352727325,1739280639557,-500.0,0.00010958,2]
[352727327,1739280639566,-504.12757462,0.00010958,2]
[352727329,1739280639576,-500.0,0.00010958,2]
[352727331,1739280639586,-500.0,0.00010958,2]
[352727333,1739280639595,-500.0,0.00010958,2]
[352727335,1739280639604,-500.0,0.00010958,2]
[352727337,1739280639614,-501.84431738,0.00010958,2]
[352727339,1739280639623,-500.0,0.00010958,2]
[352727341,1739280639632,-500.0,0.00010958,2]
[352727342,1739280639642,-500.0,0.00010958,2]
[352727343,1739280639651,-500.0,0.00010958,2]
[352727344,1739280639660,-500.0,0.00010958,2]
[352727345,1739280639677,-500.0,0.00010958,2]
[352727346,1739280639686,-500.0,0.00010958,2]
[352727347,1739280639696,-500.0,0.00010958,2]
[352727348,1739280639705,-500.0,0.00010958,2]
[352727349,1739280639714,-500.0,0.00010958,2]
[352727350,1739280639724,-393.11443953,0.00010958,2]
[352727351,1739280639734,-500.0,0.00010958,2]
[352727352,1739280639743,-500.0,0.00010958,2]
[352727353,1739280639752,-500.0,0.00010958,2]
[352727354,1739280639763,-500.0,0.00010958,2]
[352727355,1739280639773,-502.5544929,0.00010958,2]
[352727356,1739280639782,-500.0,0.00010958,2]
[352727357,1739280639792,-500.0,0.00010958,2]
[352727358,1739280639802,-500.0,0.00010958,2]
[352727359,1739280639812,-500.0,0.00010958,2]
[352727360,1739280639827,-500.0,0.00010958,2]
[352727361,1739280639837,-500.0,0.00010958,2]
[352727362,1739280639847,-500.0,0.00010958,2]
[352727363,1739280639857,-500.0,0.00010958,2]
[352727364,1739280639866,-500.0,0.00010958,2]
[352727365,1739280639875,-500.0,0.00010958,2]
[352727366,1739280639884,-500.0,0.00010958,2]
[352727367,1739280639895,-500.0,0.00010958,2]
[352727368,1739280639905,-500.0,0.00010958,2]
[352727369,1739280639915,-500.0,0.00010958,2]
[352727370,1739280639924,-500.0,0.00010958,2]
[352727371,1739280639933,-500.0,0.00010958,2]
[352727372,1739280639942,-500.0,0.00010958,2]
[352727373,1739280639952,-500.0,0.00010958,2]
[352727374,1739280639962,-500.0,0.00010958,2]
[352727375,1739280639972,-500.0,0.00010958,2]
[352727376,1739280639983,-500.0,0.00010958,2]
[352727377,1739280639993,-500.0,0.00010958,2]
[352727378,1739280640003,-500.0,0.00010958,2]
[352727379,1739280640013,-500.0,0.00010958,2]
[352727380,1739280640022,-500.0,0.00010958,2]
[352727381,1739280640032,-500.0,0.00010958,2]
[352727382,1739280640041,-500.0,0.00010958,2]
[352727383,1739280640050,-500.0,0.00010958,2]
[352727384,1739280640059,-508.3448504,0.00010958,2]
[352727385,1739280640069,-500.0,0.00010958,2]
[352727386,1739280640078,-500.0,0.00010958,2]
[352727387,1739280640087,-500.0,0.00010958,2]
[352727388,1739280640096,-500.0,0.00010958,2]
[352727389,1739280640106,-500.0,0.00010958,2]
[352727390,1739280640115,-500.0,0.00010958,2]
[352727391,1739280640124,-500.0,0.00010958,2]
[352727392,1739280640133,-500.0,0.00010958,2]
[352727393,1739280640143,-500.0,0.00010958,2]
[352727394,1739280640152,-500.0,0.00010958,2]
[352727395,1739280640161,-500.0,0.00010958,2]
[352727396,1739280640171,-500.0,0.00010958,2]
[352727397,1739280640180,-500.85933537,0.00010958,2]
[352727398,1739280640189,-525.24665802,0.00010958,2]
[352727399,1739280640198,-500.0,0.00010958,2]
[352727400,1739280640208,-548.00675095,0.00010958,2]
[352727401,1739280640217,-500.0,0.00010958,2]
[352727402,1739280640226,-500.0,0.00010958,2]
[352727403,1739280640237,-500.0,0.00010958,2]
[352727405,1739280640247,-500.0,0.00010958,2]
[352727407,1739280640256,-500.0,0.00010958,2]
[352727409,1739280640266,-500.0,0.00010958,2]
[352727411,1739280640276,-500.0,0.00010958,2]
[352727413,1739280640286,-500.0,0.00010958,2]
[352727415,1739280640295,-500.0,0.00010958,2]
[352727417,1739280640305,-500.0,0.00010958,2]
[352727418,1739280640314,-500.0,0.00010958,2]
[352727419,1739280640323,-500.0,0.00010958,2]
[352727420,1739280640333,-500.0,0.00010958,2]
[352727421,1739280640343,-500.0,0.00010958,2]
[352727422,1739280640354,-500.0,0.00010958,2]
[352727423,1739280640363,-500.0,0.00010958,2]
[352727424,1739280640373,-500.0,0.00010958,2]
[352727425,1739280640382,-500.0,0.00010958,2]
[352727426,1739280640392,-500.0,0.00010958,2]
[352727427,1739280640401,-500.0,0.00010958,2]
[352727428,1739280640410,-500.0,0.00010958,2]
[352727429,1739280640419,-500.0,0.00010958,2]
[352727430,1739280640429,-500.0,0.00010958,2]
[352727431,1739280640438,-500.0,0.00010958,2]
[352727432,1739280640448,-500.0,0.00010958,2]
[352727433,1739280640458,-500.0,0.00010958,2]
[352727434,1739280640467,-500.0,0.00010958,2]
[352727435,1739280640477,-500.0,0.00010958,2]
[352727436,1739280640488,-500.0,0.00010958,2]
[352727437,1739280640498,-502.13396927,0.00010958,2]
[352727438,1739280640507,-500.0,0.00010958,2]
[352727439,1739280640517,-500.0,0.00010958,2]
[352727440,1739280640526,-500.0,0.00010958,2]
[352727441,1739280640535,-500.0,0.00010958,2]
[352727442,1739280640545,-500.0,0.00010958,2]
[352727443,1739280640555,-500.0,0.00010958,2]
[352727444,1739280640564,-533.11101326,0.00010958,2]
[352727445,1739280640573,-500.0,0.00010958,2]
[352727446,1739280640583,-500.0,0.00010958,2]
[352727447,1739280640593,-500.0,0.00010958,2]
[352727448,1739280640602,-500.0,0.00010958,2]
[352727449,1739280640611,-500.0,0.00010958,2]
[352727450,1739280640620,-500.0,0.00010958,2]
[352727451,1739280640630,-500.0,0.00010958,2]
[352727452,1739280640639,-500.0,0.00010958,2]
[352727453,1739280640649,-500.0,0.00010958,2]
[352727454,1739280640658,-500.0,0.00010958,2]
[352727455,1739280640667,-500.0,0.00010958,2]
[352727456,1739280640676,-500.0,0.00010958,2]
[352727457,1739280640686,-185.541421,0.00010958,2]
[352727458,1739280640695,-500.0,0.00010958,2]
[352727459,1739280640704,-469.12219528,0.00010958,2]
[352727460,1739280640714,-500.0,0.00010958,2]
[352727461,1739280640723,-500.0,0.00010958,2]
[352727462,1739280640734,-500.0,0.00010958,2]
[352727463,1739280640744,-502.01900831,0.00010958,2]
[352727464,1739280640754,-500.0,0.00010958,2]
[352727465,1739280640764,-500.0,0.00010958,2]
[352727466,1739280640773,-500.0,0.00010958,2]
[352727467,1739280640782,-500.0,0.00010958,2]
[352727468,1739280640791,-500.4535,0.00010958,2]
[352727469,1739280640800,-500.0,0.00010958,2]
[352727470,1739280640809,-500.0,0.00010958,2]
[352727471,1739280640821,-500.0,0.00010958,2]
[352727472,1739280640831,-500.0,0.00010958,2]
[352727473,1739280640840,-500.0,0.00010958,2]
[352727474,1739280640850,-156.678709,0.00010958,2]
[352727476,1739280640861,-500.0,0.00010958,2]
[352727477,1739280640870,-500.0,0.00010958,2]
[352727479,1739280640879,-500.0,0.00010958,2]
[352727481,1739280640889,-500.0,0.00010958,2]
[352727483,1739280640900,-500.0,0.00010958,2]
[352727484,1739280640910,-500.0,0.00010958,2]
[352727485,1739280640920,-500.0,0.00010958,2]
[352727486,1739280640930,-500.0,0.00010958,2]